bitfinex-derivatives/quotes_ETHF0:USTF0_20250116
["timestamp","ask_amount","ask_price","bid_price","bid_amount"]
[1737033715895,0.60123,3327.4,3327.2,0.60125]
[1737033716203,3.2078,3327.5,3327.4,0.60122]
[1737033716705,3.2078,3327.9,3327.7,0.60115]
[1737033717207,3.2078,3327.9,3327.8,0.60115]
[1737033717402,3.2078,3327.9,3327.7,0.60115]
[1737033717610,3.2078,3327.9,3327.8,0.60115]
[1737033720106,3.2078,3328.3,3327.7,1.31]
[1737033720306,3.2078,3328.3,3328.2,0.60108]
[1737033720506,3.2078,3328.7,3328.2,0.60108]
[1737033720812,3.2078,3328.7,3328.6,0.601]
[1737033721107,3.2078,3329.2,3329.1,0.60091]
[1737033721402,3.2078,3329.2,3328.5,1.31]
[1737033721403,6.6429082,3329.6,3329.4,0.60085]
[1737033721604,3.2078,3329.6,3329.5,0.60084]
[1737033723304,3.2078,3330.2,3330.1,0.60073]
[1737033724005,3.2078,3330.6,3330.5,0.60064]
[1737033724910,3.2078,3331.1,3330.2,4.70959]
[1737033725121,3.2078,3331.1,3330.3,2.10245]
[1737033725410,3.2078,3331.1,3331.0,0.60057]
[1737033725606,3.2078,3331.5,3331.4,0.6005]
[1737033725806,3.2078,3332.0,3331.9,0.6004]
[1737033726007,6.96143415,3332.4,3332.3,0.60034]
[1737033726220,3.2078,3332.5,3331.8,1.309]
[1737033726422,3.2078,3332.5,3332.4,0.60032]
[1737033727010,3.2078,3332.5,3332.0,0.60039]
[1737033727205,3.2078,3332.5,3331.9,40.8]
[1737033727405,3.2078,3332.5,3332.4,0.60032]
[1737033728907,3.2078,3332.9,3332.1,3.2078]
[1737033729210,3.2078,3332.9,3332.7,0.60026]
[1737033729412,3.2078,3332.9,3332.5,0.60029]
[1737033730406,3.2078,3332.9,3332.1,3.2078]
[1737033730709,3.2078,3332.9,3332.6,0.60028]
[1737033731105,3.2078,3332.9,3332.5,0.6003]
[1737033731507,3.2078,3332.9,3332.4,0.60031]
[1737033731710,3.2078,3332.9,3332.5,0.60029]
[1737033731913,3.80803,3332.9,3332.5,0.60029]
[1737033732117,0.60029,3332.6,3332.1,3.2078]
[1737033732318,0.4595,3333.5,3331.9,1.304]
[1737033732319,3.2078,3332.5,3331.9,1.304]
[1737033732705,3.2078,3332.9,3331.9,1.304]
[1737033732918,3.80804,3332.9,3332.4,0.60031]
[1737033733119,3.80804,3332.9,3332.5,0.60028]
[1737033733120,3.2078,3332.9,3332.5,0.60028]
[1737033733416,3.2078,3332.9,3332.0,1.50098]
[1737033733619,3.2078,3332.9,3332.6,0.60028]
[1737033733915,3.2078,3332.9,3331.9,1.304]
[1737033734115,3.80811,3332.5,3332.0,0.60038]
[1737033734315,0.60032,3332.4,3331.9,1.9044]
[1737033734516,3.2078,3332.5,3332.1,0.60036]
[1737033734718,3.2078,3332.5,3331.9,1.304]
[1737033734916,3.2078,3332.5,3332.1,0.60036]
[1737033735115,3.2078,3332.5,3332.3,0.60033]
[1737033735318,3.2078,3332.5,3332.2,0.60035]
[1737033735619,3.2078,3332.5,3332.2,0.60034]
[1737033736119,3.80811,3332.5,3332.0,0.60039]
[1737033736319,3.2078,3332.5,3332.2,0.60035]
[1737033736515,3.2078,3332.5,3331.9,1.304]
[1737033736818,3.2078,3332.5,3332.0,1.304]
[1737033737522,0.60037,3332.2,3331.8,0.60042]
[1737033737713,3.2078,3332.5,3331.5,1.304]
[1737033737913,3.2078,3332.5,3332.2,0.60034]
[1737033738414,3.2078,3332.5,3331.5,1.304]
[1737033738621,3.2078,3332.9,3331.6,1.50116]
[1737033738825,0.60025,3332.8,3332.4,0.60031]
[1737033739015,3.2078,3332.9,3332.4,0.60031]
[1737033739215,3.2078,3332.5,3332.2,0.60034]
[1737033739413,0.60033,3332.4,3332.0,0.60038]
[1737033739716,3.2078,3332.5,3332.2,0.60035]
[1737033739917,3.2078,3332.5,3332.1,1.303]
[1737033740220,0.60035,3332.2,3332.1,1.303]
[1737033740413,3.2078,3332.5,3332.1,1.303]
[1737033740722,3.80811,3332.5,3332.1,1.90336]
[1737033740919,0.60034,3332.3,3332.1,1.303]
[1737033741115,3.2078,3332.5,3332.1,1.303]
[1737033741819,3.2078,3332.8,3332.5,0.60029]
[1737033742022,3.80805,3332.8,3332.5,0.60029]
[1737033742219,3.2078,3332.8,3332.7,0.60026]
[1737033743124,3.2078,3333.2,3333.1,0.60019]
[1737033743622,3.2078,3333.2,3332.9,1.303]
[1737033744018,0.60021,3333.1,3332.9,1.303]
[1737033744215,3.2078,3334.5,3333.0,3.2078]
[1737033744423,3.2078,3334.9,3333.6,1.50025]
[1737033744619,3.2078,3334.5,3333.7,1.303]
[1737033744821,3.80775,3334.5,3334.2,0.59998]
[1737033745025,3.2078,3334.5,3334.4,0.59996]
[1737033746319,3.2078,3334.5,3333.8,1.50017]
[1737033746320,0.59998,3334.4,3333.7,1.303]
[1737033746519,0.59998,3334.4,3333.0,3.47396]
[1737033746520,3.2078,3334.1,3333.1,3.6954]
[1737033746824,3.2078,3334.1,3333.2,1.303]
[1737033747024,3.2078,3333.7,3333.6,0.6001]
[1737033747320,3.2078,3334.1,3333.3,2.10056]
[1737033747521,3.2078,3334.1,3333.2,1.303]
[1737033747823,3.2078,3334.1,3334.0,0.60003]
[1737033748020,0.4848,3334.3,3334.2,0.59999]
[1737033748424,0.4848,3334.3,3333.6,4.70802]
[1737033748425,3.2078,3334.5,3334.4,0.59996]
[1737033748615,3.2078,3334.5,3333.6,3.2078]
[1737033749420,3.2078,3334.5,3334.4,0.59996]
[1737033751432,3.80774,3334.5,3334.4,0.59996]
[1737033751618,3.2078,3334.5,3334.0,1.303]
[1737033751832,3.2078,3334.1,3334.0,1.90303]
[1737033752030,3.2078,3334.1,3334.0,1.303]
[1737033752031,3.80781,3334.1,3334.0,1.303]
[1737033752734,0.59987,3334.9,3334.6,0.59991]
[1737033752933,3.2078,3334.7,3334.0,1.303]
[1737033753324,3.2078,3334.7,3333.6,3.2078]
[1737033753532,3.2078,3334.7,3334.6,0.59992]
[1737033755745,0.4946,3335.1,3334.5,1.303]
[1737033755943,3.2078,3335.2,3335.1,0.59983]
[1737033756142,3.2078,3335.6,3335.5,0.59976]
[1737033757243,3.2078,3335.6,3335.4,0.59976]
[1737033757244,0.59976,3335.5,3335.4,0.59976]
[1737033757449,3.80755,3335.6,3335.5,0.59976]
[1737033757648,3.2078,3335.6,3335.5,0.59976]
[1737033757845,3.80754,3335.6,3335.5,0.59976]
[1737033758046,3.2078,3335.6,3334.9,1.49964]
[1737033758244,3.2078,3335.6,3334.7,2.82908044]
[1737033758444,3.80755,3335.6,3335.5,0.59976]
[1737033758847,3.2078,3335.6,3335.5,0.59976]
[1737033761249,3.2078,3335.6,3335.2,1.301]
[1737033761547,0.5998,3335.3,3335.2,1.301]
[1737033762654,3.2078,3335.6,3334.8,0.59988]
[1737033762855,3.2078,3335.6,3334.3,4.32902044]
[1737033762856,3.2078,3335.0,3334.4,1.301]
[1737033763050,3.80766,3335.0,3334.7,0.59989]
[1737033763251,3.80766,3335.0,3334.8,0.59988]
[1737033763558,0.5999,3334.8,3334.6,0.59992]
[1737033763956,3.2078,3335.0,3334.7,0.5999]
[1737033763957,0.59988,3334.9,3334.7,0.5999]
[1737033764157,0.59989,3334.8,3334.6,0.59991]
[1737033764350,0.59987,3334.9,3334.7,0.5999]
[1737033764550,3.2078,3335.0,3334.6,0.59991]
[1737033764859,3.2078,3335.0,3334.5,1.301]
[1737033765056,0.59992,3334.7,3334.5,1.90093]
[1737033765255,3.2078,3335.0,3334.5,1.301]
[1737033765454,0.59993,3334.6,3334.4,1.90096]
[1737033765854,0.59993,3334.6,3334.4,0.59996]
[1737033766053,0.59994,3334.5,3334.3,0.59997]
[1737033766652,3.2078,3334.6,3333.7,0.9255]
[1737033766854,0.60007,3333.8,3333.7,0.4457]
[1737033767154,3.2078,3334.5,3333.7,0.4457]
[1737033767562,0.60001,3334.2,3334.0,0.60002]
[1737033768359,0.60004,3334.0,3333.8,0.60006]
[1737033768556,3.2078,3334.1,3333.7,0.4457]
[1737033768756,0.60007,3333.8,3333.7,0.4457]
[1737033768953,0.60006,3333.9,3333.7,1.04578]
[1737033769263,0.60007,3333.8,3333.7,0.4457]
[1737033769658,3.2078,3334.1,3333.7,0.4457]
[1737033769867,0.60005,3334.0,3333.8,0.60006]
[1737033770058,0.60007,3333.8,3333.7,0.4457]
[1737033770453,3.2078,3334.1,3333.7,0.4457]
[1737033770658,0.60004,3334.0,3333.8,0.60006]
[1737033770859,3.2078,3334.1,3333.8,0.60006]
[1737033771058,3.80782,3334.1,3333.8,0.60006]
[1737033771559,3.80782,3334.1,3333.7,0.4457]
[1737033771560,3.2078,3334.1,3334.0,0.60003]
[1737033772266,0.59997,3334.4,3333.7,1.94589]
[1737033772458,0.59997,3334.4,3334.1,0.59999]
[1737033772768,0.59998,3334.3,3334.1,0.6]
[1737033772967,0.59997,3334.4,3334.2,0.59999]
[1737033773658,0.59998,3334.3,3333.7,1.94589]
[1737033773859,3.2078,3334.5,3333.7,1.94589]
[1737033773860,0.60004,3334.0,3333.8,0.60005]
[1737033774059,3.2078,3334.1,3333.7,0.4457]
[1737033774266,3.80783,3334.1,3333.9,0.60005]
[1737033774566,3.80782,3334.1,3334.0,0.60003]
[1737033774864,3.80782,3334.1,3333.7,0.4457]
[1737033775063,3.2078,3334.1,3334.0,0.60003]
[1737033775264,3.2078,3334.1,3333.7,0.4457]
[1737033775458,3.2078,3334.1,3333.5,12.602]
[1737033775662,3.80788,3333.7,3333.6,0.6001]
[1737033775859,3.2078,3333.7,3333.6,0.6001]
[1737033777058,3.2078,3334.1,3333.5,13.903]
[1737033777263,0.60004,3334.0,3333.8,0.60005]
[1737033777566,3.2078,3334.1,3333.5,13.903]
[1737033777765,0.60004,3334.0,3333.8,0.60006]
[1737033777960,3.2078,3334.1,3333.5,13.903]
[1737033778162,3.80782,3334.1,3333.9,0.60004]
[1737033778463,0.60005,3334.0,3333.8,0.60006]
[1737033778662,0.60005,3334.0,3333.5,13.903]
[1737033778857,3.2078,3334.1,3333.5,13.903]
[1737033779062,3.80782,3334.1,3333.9,0.60003]
[1737033779257,3.80782,3334.1,3333.5,15.40328]
[1737033779461,3.80782,3334.1,3333.9,0.60003]
[1737033779759,3.80782,3334.1,3334.0,0.60003]
[1737033779975,3.2078,3334.1,3334.0,0.60003]
[1737033780664,3.2078,3334.5,3333.9,2.82908044]
[1737033780869,3.2078,3334.5,3334.4,0.59996]
[1737033781167,0.4587,3334.9,3334.8,0.59775934]
[1737033781168,3.2078,3334.9,3334.8,0.59775934]
[1737033781567,3.2078,3334.9,3334.4,42.101]
[1737033781868,0.59994,3334.6,3334.4,1.301]
[1737033782072,3.2078,3334.9,3334.4,1.301]
[1737033782467,3.80774,3334.5,3334.4,1.301]
[1737033782767,0.60001,3334.1,3334.0,2.2049]
[1737033783067,3.80781,3334.1,3334.0,1.301]
[1737033784072,3.2078,3334.1,3334.0,1.90103]
[1737033784570,3.80781,3334.1,3334.0,1.301]
[1737033784768,3.2078,3334.1,3334.0,1.90103]
[1737033784970,3.80781,3334.1,3334.0,1.301]
[1737033785366,3.2078,3334.1,3333.5,15.43108044]
[1737033785669,3.2078,3334.1,3333.6,1.301]
[1737033785874,3.80783,3334.1,3333.9,0.60004]
[1737033786073,0.60003,3334.0,3333.9,0.60004]
[1737033786269,3.2078,3334.1,3333.9,0.60004]
[1737033786270,3.80782,3334.1,3333.9,0.60004]
[1737033786868,3.80782,3334.1,3334.0,0.60003]
[1737033787172,6.28714044,3335.0,3333.9,2.82908044]
[1737033787173,3.2078,3334.7,3333.9,2.82908044]
[1737033787372,3.2078,3334.7,3334.2,0.59998]
[1737033787572,3.2078,3334.7,3333.9,2.82908044]
[1737033787868,0.4587,3335.0,3333.9,1.301]
[1737033787869,0.60003,3334.0,3333.9,1.301]
[1737033788070,0.60003,3334.0,3333.8,0.60006]
[1737033788071,0.60005,3334.0,3333.8,0.60006]
[1737033788270,3.2078,3334.3,3333.9,0.60005]
[1737033788469,3.2078,3334.3,3334.0,0.60002]
[1737033788470,0.59999,3334.2,3334.0,0.60002]
[1737033788667,3.80779,3334.3,3334.1,0.6]
[1737033788867,3.2078,3334.3,3333.7,6.00899]
[1737033789068,3.2078,3334.3,3334.2,0.59999]
[1737033789266,0.59995,3334.5,3334.3,0.59996]
[1737033789468,0.59995,3334.5,3334.4,0.59996]
[1737033789677,0.59995,3334.5,3334.3,0.59997]
[1737033789870,0.59995,3334.5,3334.4,0.59996]
[1737033790270,3.2078,3334.8,3334.7,0.5999]
[1737033790873,3.8077,3334.8,3334.6,0.59991]
[1737033791070,3.8077,3334.8,3334.7,0.5999]
[1737033791577,3.2078,3334.8,3334.7,0.5999]
[1737033793178,3.2078,3334.8,3334.4,0.9255]
[1737033793378,0.59997,3334.4,3334.3,0.59998]
[1737033793680,0.59999,3334.2,3334.1,1.292]
[1737033794077,0.60003,3334.1,3333.9,0.60004]
[1737033794372,0.6,3334.2,3333.8,0.9601]
[1737033794678,0.59999,3334.3,3334.1,0.60001]
[1737033794878,3.2078,3334.4,3333.8,0.9601]
[1737033795271,0.5999,3334.7,3334.5,0.59993]
[1737033795471,0.59993,3334.6,3334.4,0.59995]
[1737033795671,0.59995,3334.5,3334.4,0.59995]
[1737033796170,3.8077,3334.8,3334.7,0.5999]
[1737033796372,3.2078,3334.8,3334.7,0.5999]
[1737033797174,3.2078,3334.8,3334.6,1.292]
[1737033797583,0.5999,3334.7,3334.6,1.292]
[1737033797881,0.5999,3334.7,3334.6,1.89192]
[1737033798276,3.2078,3334.8,3334.6,1.292]
[1737033798483,0.5999,3334.7,3334.6,1.292]
[1737033798871,3.2078,3334.8,3334.6,1.89192]
[1737033799074,3.8077,3334.8,3334.7,0.5999]
[1737033799282,3.2078,3334.8,3334.7,0.5999]
[1737033801383,0.59984,3335.1,3335.0,0.59985]
[1737033801978,3.2078,3335.2,3334.6,2.2566]
[1737033802281,0.5999,3334.7,3334.6,2.85651]
[1737033802480,3.2078,3334.8,3334.7,0.5999]
[1737033802978,0.5999,3334.7,3334.6,1.292]
[1737033804984,0.59992,3334.6,3334.5,0.59993]
[1737033805287,3.2078,3334.8,3334.3,1.292]
[1737033805490,0.5999,3334.7,3334.5,0.59994]
[1737033805785,0.5999,3334.7,3333.9,3.74608044]
[1737033805786,1.49977,3334.7,3333.9,3.74608044]
[1737033805975,3.2078,3334.4,3333.9,0.917]
[1737033806287,4.70772,3334.4,3333.9,2.209]
[1737033806583,0.60003,3334.0,3333.9,2.80904]
[1737033806777,0.60003,3334.0,3333.9,1.51704]
[1737033806978,3.80783,3334.0,3333.9,0.4645]
[1737033807185,0.60007,3333.8,3333.7,0.60007]
[1737033807488,0.60006,3333.9,3333.8,0.60006]
[1737033807786,3.2078,3334.0,3333.5,14.3491]
[1737033808184,0.60006,3333.9,3333.8,0.60006]
[1737033808383,0.60006,3333.9,3333.8,0.60007]
[1737033808889,0.60008,3333.8,3333.7,0.60008]
[1737033809290,3.2078,3334.0,3333.5,14.3491]
[1737033809490,0.60009,3333.7,3333.6,0.6001]
[1737033809689,0.60009,3333.7,3333.5,13.894]
[1737033809690,0.60009,3333.7,3333.5,14.4941]
[1737033809892,0.60009,3333.7,3333.6,0.6001]
[1737033810081,0.6001,3333.6,3333.5,0.60011]
[1737033810288,3.2078,3333.6,3332.9,4.67187945]
[1737033810491,0.60013,3333.5,3333.3,0.60015]
[1737033810687,3.2078,3333.6,3333.0,1.292]
[1737033810887,3.2078,3333.6,3333.1,0.60018]
[1737033811191,3.2078,3333.6,3333.0,0.6002]
[1737033811192,0.60019,3333.1,3333.0,0.6002]
[1737033811405,3.80799,3333.1,3333.0,1.292]
[1737033812390,3.2078,3333.1,3332.9,1.292]
[1737033812591,0.60021,3333.0,3332.9,1.292]
[1737033812793,3.2078,3333.1,3333.0,0.60021]
[1737033812994,3.80799,3333.1,3332.9,1.89222]
[1737033813496,3.2078,3333.1,3332.9,1.292]
[1737033813795,3.808,3333.1,3332.9,1.292]
[1737033814691,3.808,3333.1,3332.9,1.89222]
[1737033815087,3.2078,3333.1,3332.9,1.292]
[1737033815290,3.2078,3333.1,3333.0,0.60021]
[1737033815788,0.60017,3333.2,3333.0,0.60021]
[1737033816191,0.60014,3333.4,3333.1,0.60017]
[1737033816393,0.60014,3333.4,3332.9,3.68661659]
[1737033816691,3.80786,3333.9,3333.7,0.60007]
[1737033816891,3.80786,3333.9,3333.5,2.39461659]
[1737033816892,3.2078,3333.9,3333.5,2.39461659]
[1737033817090,3.2078,3333.9,3333.8,0.60007]
[1737033817288,6.89855675,3334.2,3334.1,0.60001]
[1737033817495,0.59993,3334.6,3334.1,2.39461659]
[1737033817688,0.5999,3334.7,3334.1,2.39461659]
[1737033817887,10.10635675,3334.8,3334.4,2.39461659]
[1737033818286,3.2078,3334.8,3334.7,2.99451659]
[1737033818998,3.2078,3335.2,3334.7,2.39461659]
[1737033819292,3.80762,3335.2,3335.0,0.59984]
[1737033819598,3.2078,3335.2,3334.6,0.931]
[1737033819799,3.2078,3335.2,3335.1,0.59983]
[1737033820396,0.59972,3335.8,3335.5,0.59976]
[1737033820791,3.2078,3336.1,3335.4,1.285]
[1737033821192,0.59968,3336.0,3335.8,0.5997]
[1737033821386,3.2078,3336.1,3335.7,0.59972]
[1737033821694,0.5997,3335.9,3335.7,0.59972]
[1737033821897,3.2078,3336.1,3335.4,1.285]
[1737033822395,3.80745,3336.1,3336.0,0.59967]
[1737033823291,3.80746,3336.1,3335.9,0.59968]
[1737033823692,3.2078,3336.1,3335.5,0.9057]
[1737033823893,0.59968,3336.0,3335.8,0.59971]
[1737033824092,0.59973,3335.7,3335.5,0.9057]
[1737033824395,0.59972,3335.8,3335.5,1.50545]
[1737033824698,0.59967,3336.0,3335.7,0.59972]
[1737033824901,0.59967,3336.0,3335.5,0.9057]
[1737033824902,0.59971,3335.8,3335.6,0.59974]
[1737033825098,3.2078,3336.1,3335.7,0.59972]
[1737033825298,3.2078,3336.1,3335.5,0.9057]
[1737033825499,3.80746,3336.1,3335.9,0.59968]
[1737033825792,3.2078,3336.1,3335.5,0.9057]
[1737033825994,3.2078,3336.1,3335.9,0.59969]
[1737033825995,3.80746,3336.1,3335.9,0.59969]
[1737033826405,0.59967,3336.0,3335.5,0.9057]
[1737033826598,0.59967,3336.0,3335.8,0.5997]
[1737033827003,0.59967,3336.0,3335.9,0.59969]
[1737033827192,3.2078,3336.1,3335.5,2.1897]
[1737033827394,3.2078,3336.1,3335.9,0.59968]
[1737033827596,3.2078,3336.1,3335.5,2.1897]
[1737033827900,0.59967,3336.0,3335.8,0.59969]
[1737033828105,0.59967,3336.0,3335.9,0.59969]
[1737033829202,0.4761,3336.3,3335.6,3.2078]
[1737033829504,3.2078,3336.5,3336.4,0.5996]
[1737033829895,0.59961,3336.4,3336.3,0.59962]
[1737033830298,0.59961,3336.4,3335.8,1.49927]
[1737033830803,0.59961,3336.4,3336.3,0.59962]
[1737033832001,3.2078,3336.5,3336.4,0.5996]
[1737033834406,3.2078,3336.5,3336.4,1.5432]
[1737033836795,3.2078,3337.0,3336.4,0.9436]
[1737033837198,0.59957,3336.6,3336.4,1.54318]
[1737033838002,0.59955,3336.7,3336.5,0.59957]
[1737033838203,3.2078,3337.0,3336.4,0.9436]
[1737033838399,3.2078,3337.0,3336.6,0.59956]
[1737033838602,0.59951,3336.9,3336.4,0.9436]
[1737033838794,0.59951,3336.9,3336.7,0.59954]
[1737033838998,0.59954,3336.8,3336.6,0.59956]
[1737033839195,0.59952,3336.9,3336.7,0.59953]
[1737033840104,3.2078,3337.4,3336.7,2.38961585]
[1737033840304,3.80722,3337.4,3337.3,0.59944]
[1737033840504,3.2078,3337.4,3337.3,0.59944]
[1737033841007,3.2078,3337.4,3337.2,1.284]
[1737033841307,0.59944,3337.3,3337.2,1.284]
[1737033841810,0.59953,3336.8,3336.7,1.284]
[1737033842395,0.59958,3336.5,3336.4,0.4838]
[1737033842596,3.80739,3336.5,3336.4,1.284]
[1737033842800,3.80739,3336.5,3336.3,0.59961]
[1737033843208,3.2078,3336.5,3336.4,0.5996]
[1737033843413,3.2078,3336.5,3336.3,0.59961]
[1737033843414,3.80738,3336.5,3336.3,0.59961]
[1737033843705,3.2078,3336.5,3336.4,0.5996]
[1737033844205,3.80738,3336.5,3336.4,0.5996]
[1737033844706,3.2078,3336.5,3336.4,0.5996]
[1737033846406,3.2078,3336.9,3336.2,1.284]
[1737033846708,3.2078,3336.9,3336.7,0.59954]
[1737033847009,3.2078,3336.9,3336.2,2.78309]
[1737033847213,3.80732,3336.9,3336.8,0.59953]
[1737033847508,0.59954,3336.8,3336.7,0.59953]
[1737033847904,3.80732,3336.9,3336.8,0.59953]
[1737033848101,0.8678,3337.2,3336.3,2.82393842]
[1737033848102,0.4936,3337.2,3337.1,0.59947]
[1737033848307,3.2078,3337.4,3337.3,0.59944]
[1737033849019,3.80714,3337.9,3337.7,0.59936]
[1737033849204,3.80714,3337.9,3337.8,1.279]
[1737033849404,3.80714,3337.9,3337.8,1.87835]
[1737033849611,3.2078,3338.7,3337.8,1.279]
[1737033849813,3.2078,3338.7,3338.0,2.82393842]
[1737033850112,3.2078,3338.7,3338.5,0.59921]
[1737033850404,3.2078,3338.7,3338.6,1.8782]
[1737033851000,0.59923,3338.5,3338.2,0.59927]
[1737033851204,0.59923,3338.5,3338.3,1.279]
[1737033851608,0.59921,3338.6,3338.3,1.87825]
[1737033851910,0.59921,3338.6,3338.4,0.59923]
[1737033852114,3.2078,3338.7,3338.3,1.279]
[1737033852510,3.2078,3338.7,3338.4,0.59923]
[1737033852511,0.59921,3338.6,3338.4,0.59923]
[1737033852811,3.2078,3338.7,3338.5,1.279]
[1737033853009,3.2078,3338.7,3338.6,0.5992]
[1737033853710,3.80691,3339.2,3338.5,1.279]
[1737033853908,3.2078,3339.2,3338.5,1.279]
[1737033854309,0.59913,3339.1,3338.8,0.59916]
[1737033855007,3.2078,3339.2,3338.5,1.279]
[1737033855309,3.8069,3339.2,3339.0,0.59912]
[1737033855508,0.59911,3339.1,3339.0,0.59912]
[1737033855710,3.2078,3339.2,3339.0,0.59913]
[1737033856008,3.8069,3339.2,3339.0,0.59913]
[1737033856213,3.8069,3339.2,3338.9,0.59914]
[1737033856214,0.59911,3339.1,3338.9,0.59914]
[1737033856419,3.2078,3339.2,3338.5,4.4868]
[1737033856711,3.8069,3339.2,3338.5,4.4868]
[1737033856908,0.59911,3339.1,3338.9,0.59914]
[1737033857107,3.2078,3339.2,3338.9,0.59914]
[1737033857409,3.80691,3339.2,3338.9,0.59654961]
[1737033857710,0.59911,3339.1,3338.9,0.59654961]
[1737033858105,0.59911,3339.1,3338.9,0.59915]
[1737033858306,0.59911,3339.1,3338.5,45.2868]
[1737033858307,0.59911,3339.1,3339.0,1.279]
[1737033858505,3.2078,3339.2,3338.9,1.279]
[1737033858506,0.59913,3339.0,3338.9,1.279]
[1737033858911,0.5992,3338.6,3338.1,4.6706]
[1737033859107,4.70555,3339.2,3338.2,1.279]
[1737033859312,3.2078,3339.2,3338.2,1.279]
[1737033859612,0.59914,3339.0,3338.7,0.59918]
[1737033859811,0.59916,3338.9,3338.6,0.59919]
[1737033860414,0.59916,3338.9,3338.7,1.87817]
[1737033860710,0.59914,3339.0,3338.8,0.59916]
[1737033861102,0.59914,3339.0,3338.7,1.279]
[1737033861103,3.2078,3339.2,3338.7,1.279]
[1737033861308,3.2078,3339.2,3339.0,0.59913]
[1737033861503,0.59914,3339.0,3338.9,0.59915]
[1737033861708,3.2078,3339.2,3338.7,1.279]
[1737033861915,0.59916,3338.9,3338.7,1.279]
[1737033862103,0.59916,3338.9,3338.8,0.59917]
[1737033862506,3.2078,3339.2,3338.8,0.59917]
[1737033862706,3.2078,3339.2,3338.7,1.279]
[1737033862907,0.59917,3338.8,3338.7,1.279]
[1737033863111,0.59917,3338.8,3338.7,1.87819]
[1737033863309,3.2078,3339.2,3338.7,1.279]
[1737033863509,0.59916,3338.9,3338.8,0.59916]
[1737033864314,0.59916,3338.9,3338.7,1.279]
[1737033864315,0.59917,3338.8,3338.7,1.279]
[1737033864514,3.80697,3338.8,3338.7,1.279]
[1737033864719,3.80697,3338.8,3338.7,1.87819]
[1737033865019,3.2078,3338.8,3338.7,1.87819]
[1737033865611,3.2078,3339.2,3339.0,0.59913]
[1737033865808,3.8069,3339.2,3339.0,0.59912]
[1737033866009,3.2078,3339.2,3338.7,1.279]
[1737033866915,0.59916,3338.9,3338.7,1.87817]
[1737033867112,0.59916,3338.9,3338.8,0.59917]
[1737033867308,0.59916,3338.9,3338.7,1.87817]
[1737033867709,3.2078,3339.2,3338.7,1.279]
[1737033867920,0.59915,3338.9,3338.7,1.279]
[1737033868122,0.59915,3338.9,3338.7,1.87817]
[1737033868415,3.2078,3338.8,3338.7,1.87817]
[1737033870416,3.80697,3338.8,3338.7,1.279]
[1737033871111,3.2078,3338.8,3338.7,1.87818]
[1737033872416,0.59911,3339.1,3338.7,1.279]
[1737033872717,0.59911,3339.1,3339.0,0.59913]
[1737033872920,3.2078,3339.2,3338.7,1.279]
[1737033873218,3.2078,3339.2,3339.1,0.59911]
[1737033873419,3.8069,3339.2,3339.1,0.59911]
[1737033873620,0.59913,3339.1,3339.0,0.59913]
[1737033874615,0.59913,3339.1,3338.7,1.279]
[1737033874616,3.8069,3339.2,3339.1,0.59911]
[1737033876617,3.2078,3339.2,3339.1,0.59911]
[1737033876925,3.8069,3339.2,3339.1,0.59911]
[1737033878022,3.2078,3339.2,3339.1,1.87711]
[1737033878931,3.2078,3339.2,3339.1,4.26364123]
[1737033879612,3.2078,3339.6,3339.1,4.26364123]
[1737033879924,3.2078,3339.6,3339.5,0.59904]
[1737033880522,0.4514,3340.0,3339.4,2.38653123]
[1737033880523,4.25817,3340.0,3339.9,0.59897]
[1737033881322,3.2078,3340.5,3339.9,1.87697]
[1737033881516,0.59889,3340.4,3340.3,0.59888]
[1737033881711,3.2078,3340.5,3340.4,0.59888]
[1737033882712,2.99291,3342.1,3340.4,0.59888]
[1737033882713,3.2078,3340.9,3340.4,2.38653123]
[1737033882914,3.2078,3340.9,3340.8,0.59881]
[1737033883126,3.2078,3340.9,3340.8,1.87681]
[1737033883819,3.2078,3340.9,3340.8,1.278]
[1737033884018,3.80659,3340.9,3340.8,1.87681]
[1737033885226,3.2078,3340.9,3340.8,1.87681]
[1737033885720,3.80659,3340.9,3340.8,1.87681]
[1737033885919,3.2078,3340.9,3340.8,1.87681]
[1737033886318,3.80659,3340.9,3340.8,2.34101]
[1737033886916,3.80659,3340.9,3340.8,1.7422]
[1737033887233,3.80659,3340.9,3340.8,1.87681]
[1737033888117,3.80659,3340.9,3340.8,1.278]
[1737033889427,3.80654,3341.3,3341.2,0.59874]
[1737033889623,3.80652,3341.3,3341.2,0.59874]
[1737033889816,3.2078,3341.3,3341.1,2.38653123]
[1737033890129,3.80653,3341.3,3341.2,0.59874]
[1737033890619,0.59874,3341.2,3341.1,2.98528123]
[1737033890820,0.59877,3341.0,3340.9,1.05728]
[1737033891019,0.59879,3340.9,3340.8,1.278]
[1737033891321,3.80659,3340.9,3340.8,1.278]
[1737033891521,0.59884,3340.6,3340.5,0.59885]
[1737033891828,0.59884,3340.6,3340.5,1.87685]
[1737033892027,3.2078,3340.9,3340.0,2.38653123]
[1737033892216,2.38653123,3341.2,3339.8,15.7858]
[1737033892217,3.2078,3340.5,3340.3,2.38653123]
[1737033892420,3.2078,3340.5,3340.4,1.87688]
[1737033892615,3.2078,3340.5,3340.4,2.80408]
[1737033893028,0.59885,3340.6,3340.4,2.2052]